bitfinex/quotes_BTCUSD_20250313
["timestamp","ask_amount","ask_price","bid_price","bid_amount"]
[1741877216527,0.255373,82233.0,82228.0,0.255384]
[1741877216728,0.012161,82229.0,82223.0,0.3]
[1741877216936,0.012162,82221.0,82215.0,0.289564]
[1741877217158,0.012161,82224.0,82217.0,0.012162]
[1741877217371,0.012161,82224.0,82215.0,0.27350099]
[1741877217372,0.012162,82223.0,82207.0,0.000338]
[1741877217574,0.01904883,82230.0,82207.0,0.000338]
[1741877217575,0.25543,82214.0,82207.0,0.000338]
[1741877217778,0.012162,82221.0,82212.0,0.012163]
[1741877218012,0.243255,82218.0,82212.0,0.012163]
[1741877218210,0.012162,82219.0,82212.0,0.012163]
[1741877218211,0.26230121,82220.0,82214.0,0.25543]
[1741877218386,0.255417,82219.0,82217.0,0.004]
[1741877218587,0.255417,82218.0,82217.0,0.004]
[1741877218944,0.25543,82214.0,82213.0,0.0053382]
[1741877219149,0.25543,82214.0,82213.0,0.0033382]
[1741877219358,0.01905221,82220.0,82216.0,0.012163]
[1741877219537,0.243264,82215.0,82214.0,0.003]
[1741877219700,0.255427,82215.0,82214.0,0.003]
[1741877220895,0.012163,82214.0,82213.0,0.0003382]
[1741877221123,0.4550513,82214.0,82213.0,0.0023382]
[1741877221271,0.4550513,82214.0,82213.0,2e-07]
[1741877221272,0.5425513,82214.0,82213.0,2e-07]
[1741877221478,0.3,82213.0,82206.0,2e-07]
[1741877221677,0.012166,82191.0,82182.0,0.000338]
[1741877221857,0.46777268,82191.0,82182.0,0.000338]
[1741877222060,0.26052,82185.0,82182.0,0.000338]
[1741877222262,0.35865431,82185.0,82182.0,0.000338]
[1741877222594,0.37081957,82185.0,82182.0,0.000338]
[1741877223660,0.79078046,82185.0,82182.0,0.000338]
[1741877224071,0.017167,82183.0,82182.0,1e-07]
[1741877224270,0.46544937,82183.0,82182.0,1e-07]
[1741877224475,0.50022962,82183.0,82182.0,1e-07]
[1741877224899,0.60973452,82183.0,82182.0,1e-07]
[1741877225102,0.60473452,82183.0,82182.0,1e-07]
[1741877225303,0.54384937,82183.0,82182.0,1e-07]
[1741877225521,0.64560937,82183.0,82182.0,1e-07]
[1741877225733,0.64760937,82183.0,82182.0,1e-07]
[1741877225937,0.87880137,82183.0,82182.0,1e-07]
[1741877226137,0.59096837,82183.0,82182.0,1e-07]
[1741877226709,0.005,82183.0,82182.0,1e-07]
[1741877226913,0.11544937,82183.0,82182.0,1e-07]
[1741877227707,0.13951357,82183.0,82182.0,1e-07]
[1741877227829,0.43951357,82183.0,82182.0,1e-07]
[1741877228732,0.13451357,82183.0,82182.0,1e-07]
[1741877229211,0.0240642,82183.0,82182.0,0.0121681]
[1741877229425,0.0240642,82183.0,82182.0,0.02670895]
[1741877230077,0.005,82183.0,82182.0,0.02670895]
[1741877230226,0.005,82183.0,82182.0,1e-07]
[1741877230426,0.003,82183.0,82182.0,0.2555301]
[1741877230587,0.01906026,82187.0,82183.0,0.012167]
[1741877230790,0.01906026,82187.0,82184.0,0.241356]
[1741877230993,0.012167,82183.0,82182.0,1e-07]
[1741877231234,0.01906026,82187.0,82183.0,0.243359]
[1741877231441,0.01906026,82187.0,82182.0,0.0121681]
[1741877231643,0.01906026,82187.0,82186.0,0.02670785]
[1741877232678,0.01906026,82187.0,82186.0,0.01454085]
[1741877233015,0.01906026,82187.0,82184.0,0.012167]
[1741877233160,0.01906026,82187.0,82186.0,0.012167]
[1741877233361,0.01906026,82187.0,82186.0,0.14640884]
[1741877233565,0.15428,82218.0,82216.0,0.243259]
[1741877233754,0.02135085,82224.0,82214.0,0.012163]
[1741877233949,0.255396,82225.0,82217.0,0.012162]
[1741877234155,0.01216,82233.0,82223.0,0.012162]
[1741877234523,0.01216,82232.0,82225.0,0.243234]
[1741877234724,0.15448,82245.0,82236.0,0.01216]
[1741877234849,0.012159,82239.0,82233.0,0.243211]
[1741877235052,0.243174,82246.0,82238.0,0.012159]
[1741877235280,0.243178,82245.0,82238.0,0.008159]
[1741877235483,0.243178,82245.0,82232.0,1.5]
[1741877235484,0.255336,82245.0,82236.0,0.26990185]
[1741877235685,0.255328,82247.0,82241.0,0.255346]
[1741877236049,0.012158,82244.0,82236.0,0.02670085]
[1741877236254,0.243158,82251.0,82244.0,0.012158]
[1741877236470,0.243105,82269.0,82255.0,0.012157]
[1741877236616,0.243105,82269.0,82235.0,0.01454085]
[1741877236617,0.10791705,82270.0,82265.0,0.255271]
[1741877236822,0.12007205,82270.0,82264.0,0.255271]
[1741877237024,0.10791705,82270.0,82266.0,0.012155]
[1741877237226,0.10791705,82270.0,82266.0,0.255267]
[1741877237428,0.10791705,82270.0,82261.0,0.01454085]
[1741877237627,0.012155,82265.0,82260.0,0.012156]
[1741877237790,0.255268,82267.0,82260.0,0.012156]
[1741877237987,0.012156,82262.0,82256.0,0.3]
[1741877238289,0.012156,82261.0,82256.0,0.3]
[1741877238921,0.012156,82261.0,82254.0,0.255305]
[1741877238922,0.255284,82261.0,82260.0,0.001]
[1741877239122,0.012154,82273.0,82264.0,0.012155]
[1741877239237,0.012155,82269.0,82261.0,0.012156]
[1741877239435,0.255262,82268.0,82261.0,0.012156]
[1741877239636,0.012156,82261.0,82260.0,0.001]
[1741877240258,0.012157,82253.0,82246.0,0.166798]
[1741877240536,0.012157,82255.0,82249.0,0.012158]
[1741877240718,0.012157,82254.0,82249.0,0.01454085]
[1741877240873,0.24314,82257.0,82250.0,0.012158]
[1741877241077,0.24314,82257.0,82252.0,0.255311]
[1741877241282,0.243143,82256.0,82249.0,0.01454085]
[1741877241518,0.012158,82247.0,82236.0,0.01216]
[1741877241679,0.012158,82247.0,82240.0,0.3]
[1741877241680,0.012158,82244.0,82240.0,0.3]
[1741877241865,0.255344,82242.0,82239.0,0.15436]
[1741877242061,0.255344,82242.0,82235.0,0.255364]
[1741877242062,0.012157,82253.0,82250.0,0.002]
[1741877242399,0.15436,82275.0,82258.0,0.012156]
[1741877242400,0.012155,82267.0,82258.0,0.012156]
[1741877242608,0.243108,82268.0,82260.0,0.012156]
[1741877242609,0.243107,82268.0,82260.0,0.012156]
[1741877242857,0.255262,82268.0,82254.0,0.243146]
[1741877243033,0.012155,82265.0,82256.0,0.012157]
[1741877243429,0.012155,82266.0,82255.0,0.012157]
[1741877243430,0.243125,82262.0,82255.0,0.012157]
[1741877243636,0.012156,82258.0,82252.0,0.01454085]
[1741877244003,0.243146,82255.0,82252.0,0.01454085]
[1741877244215,0.243146,82255.0,82249.0,0.003]
[1741877244216,0.012158,82250.0,82249.0,0.003]
[1741877244417,0.012158,82250.0,82249.0,0.002]
[1741877244623,0.012159,82238.0,82237.0,0.16878085]
[1741877244798,0.012159,82241.0,82237.0,0.16878085]
[1741877245235,0.243178,82245.0,82238.0,0.243196]
[1741877245440,0.243178,82245.0,82237.0,0.16878085]
[1741877245441,0.012159,82242.0,82237.0,0.18093985]
[1741877245817,0.012159,82239.0,82237.0,0.16878085]
[1741877246404,0.243152,82253.0,82248.0,0.012158]
[1741877246613,0.243152,82253.0,82246.0,0.012158]
[1741877246817,0.012158,82249.0,82244.0,0.255336]
[1741877247265,0.255325,82248.0,82238.0,0.01454085]
[1741877247472,0.255325,82248.0,82237.0,0.18593985]
[1741877247473,0.243208,82234.0,82227.0,1.015706]
[1741877247646,0.255368,82234.0,82214.0,0.243266]
[1741877247846,0.255368,82234.0,82211.0,0.243273]
[1741877248049,0.34987716,82234.0,82210.0,0.15472]
[1741877248359,0.44208382,82234.0,82233.0,2e-07]
[1741877248560,0.44776677,82234.0,82233.0,2e-07]
[1741877248918,0.44776677,82234.0,82198.0,0.784205]
[1741877248919,0.012166,82195.0,82189.0,0.255507]
[1741877249111,0.012164,82204.0,82196.0,0.012166]
[1741877249298,0.255455,82206.0,82199.0,0.243311]
[1741877249472,0.012165,82203.0,82196.0,0.012166]
[1741877249678,0.00553286,82205.0,82198.0,0.255477]
[1741877249997,0.012165,82202.0,82197.0,0.012165]
[1741877250230,0.255474,82200.0,82192.0,0.243332]
[1741877250440,0.255474,82200.0,82192.0,0.25787285]
[1741877250441,0.242314,82198.0,82192.0,0.25787285]
[1741877250656,0.243326,82194.0,82190.0,0.243336]
[1741877250848,0.012167,82183.0,82182.0,1e-07]
[1741877251637,0.02423667,82183.0,82182.0,1e-07]
[1741877251811,0.02957144,82183.0,82182.0,1e-07]
[1741877252017,0.02423667,82183.0,82182.0,1e-07]
[1741877252433,0.02423667,82183.0,82182.0,0.0060001]
[1741877253815,0.12351904,82183.0,82182.0,1e-07]
[1741877254016,0.01217,82167.0,82166.0,0.0001692]
[1741877254227,0.3550431,82167.0,82166.0,0.0001692]
[1741877254605,0.02344508,82167.0,82166.0,0.0001692]
[1741877254737,0.26685108,82167.0,82166.0,0.0001692]
[1741877254960,0.01127508,82167.0,82166.0,0.0001692]
[1741877255165,0.26685108,82167.0,82166.0,0.0001692]
[1741877255597,0.01427508,82167.0,82166.0,0.0001692]
[1741877256237,0.26985108,82167.0,82166.0,0.0001692]
[1741877256416,0.02644508,82167.0,82166.0,0.0001692]
[1741877256952,0.012168,82179.0,82168.0,0.01217]
[1741877257154,0.48796811,82190.0,82166.0,0.0001692]
[1741877257155,0.01217,82167.0,82166.0,0.0001692]
[1741877257371,0.255576,82167.0,82166.0,0.0001692]
[1741877257558,0.3550431,82167.0,82166.0,0.0001692]
[1741877258358,0.3560431,82167.0,82166.0,0.0001692]
[1741877258787,0.3550431,82167.0,82166.0,0.0001692]
[1741877259162,0.3560431,82167.0,82166.0,0.0001692]
[1741877259859,0.36730784,82167.0,82166.0,0.0001692]
[1741877261177,0.36730784,82167.0,82166.0,2e-07]
[1741877261602,0.3898266,82167.0,82166.0,2e-07]
[1741877261803,0.6898266,82167.0,82166.0,2e-07]
[1741877262405,0.5445866,82167.0,82166.0,2e-07]
[1741877263039,0.5435866,82167.0,82166.0,2e-07]
[1741877263242,0.2821895,82167.0,82166.0,2e-07]
[1741877263408,0.0387835,82167.0,82166.0,2e-07]
[1741877263609,0.0509535,82167.0,82166.0,2e-07]
[1741877263812,0.02843474,82167.0,82166.0,2e-07]
[1741877264011,0.01717,82167.0,82166.0,2e-07]
[1741877264209,0.15810257,82167.0,82166.0,2e-07]
[1741877264488,0.16310257,82167.0,82166.0,2e-07]
[1741877264692,0.15810257,82167.0,82166.0,2e-07]
[1741877264833,0.1116371,82167.0,82166.0,2e-07]
[1741877265256,0.1136371,82167.0,82166.0,2e-07]
[1741877265454,0.1116371,82167.0,82166.0,2e-07]
[1741877265654,0.1146371,82167.0,82166.0,2e-07]
[1741877265864,0.1196371,82167.0,82166.0,2e-07]
[1741877266278,0.13910424,82167.0,82166.0,2e-07]
[1741877266478,0.03963714,82167.0,82166.0,2e-07]
[1741877266649,0.04363714,82167.0,82166.0,2e-07]
[1741877267326,0.03564954,82167.0,82166.0,2e-07]
[1741877267507,0.04688201,82167.0,82166.0,2e-07]
[1741877268142,0.04288201,82167.0,82166.0,2e-07]
[1741877268299,0.04888201,82167.0,82166.0,2e-07]
[1741877268497,0.44834911,82167.0,82166.0,2e-07]
[1741877268909,0.44534911,82167.0,82166.0,2e-07]
[1741877269321,0.44734911,82167.0,82166.0,2e-07]
[1741877269507,0.44234911,82167.0,82166.0,2e-07]
[1741877270061,0.45234911,82167.0,82166.0,2e-07]
[1741877272826,0.15234911,82167.0,82166.0,2e-07]
[1741877273708,0.15268791,82167.0,82166.0,2e-07]
[1741877274325,0.13320837,82167.0,82166.0,2e-07]
[1741877274505,0.12820837,82167.0,82166.0,2e-07]
[1741877274917,0.13120837,82167.0,82166.0,2e-07]
[1741877275386,0.12320837,82167.0,82166.0,2e-07]
[1741877275804,0.12820837,82167.0,82166.0,2e-07]
[1741877276873,0.555588,82163.0,82162.0,2e-07]
[1741877277115,0.65535134,82163.0,82162.0,2e-07]
[1741877277988,0.555588,82163.0,82162.0,2e-07]
[1741877278229,0.66035134,82163.0,82162.0,2e-07]
[1741877278447,0.36035134,82163.0,82162.0,2e-07]
[1741877278803,0.36335134,82163.0,82162.0,2e-07]
[1741877280482,0.263588,82163.0,82162.0,2e-07]
[1741877281262,0.36335134,82163.0,82162.0,2e-07]
[1741877281485,0.43698327,82163.0,82162.0,2e-07]
[1741877281669,0.35535134,82163.0,82162.0,2e-07]
[1741877281875,0.35735134,82163.0,82162.0,2e-07]
[1741877282112,0.36858381,82163.0,82162.0,2e-07]
[1741877282248,0.255647,82144.0,82143.0,0.0001692]
[1741877282970,0.35681795,82144.0,82143.0,0.0001692]
[1741877283745,0.3689166,82144.0,82143.0,0.0001692]
[1741877283941,0.78128246,82144.0,82143.0,2e-07]
[1741877284142,0.78128246,82144.0,82114.0,0.0001692]
[1741877284143,0.255685,82132.0,82114.0,0.0001692]
[1741877284375,0.65774528,82132.0,82114.0,0.0001692]
[1741877284591,0.65774528,82132.0,82131.0,2e-07]
[1741877284785,0.312175,82131.0,82130.0,4e-07]
[1741877284986,0.41427235,82131.0,82130.0,4e-07]
[1741877285735,0.012178,82115.0,82114.0,0.0001692]
[1741877285860,0.255738,82115.0,82114.0,0.0001692]
[1741877286065,0.012177,82121.0,82114.0,0.0001692]
[1741877286287,0.255738,82115.0,82114.0,0.0001692]
[1741877287284,0.37029109,82115.0,82114.0,0.0001692]
[1741877288283,0.26697047,82115.0,82114.0,0.0001692]
[1741877288454,0.37029109,82115.0,82114.0,0.0001692]
[1741877288657,0.67029109,82115.0,82114.0,0.0001692]
[1741877288885,0.79025198,82115.0,82114.0,0.0001692]
[1741877289084,0.82393109,82115.0,82114.0,0.0001692]
[1741877289226,0.555747,82112.0,82111.0,2e-07]
[1741877289431,0.6592901,82112.0,82111.0,2e-07]
[1741877291232,0.312178,82111.0,82110.0,5e-07]
[1741877291436,0.312178,82111.0,82106.0,1e-07]
[1741877291438,0.312179,82107.0,82106.0,1e-07]
[1741877291673,0.2860538,82107.0,82106.0,1e-07]
[1741877291939,0.16609291,82107.0,82106.0,1e-07]
[1741877292393,0.16609291,82107.0,82083.0,0.0001694]
[1741877292394,0.255834,82084.0,82083.0,0.0001694]
[1741877292552,0.66145425,82084.0,82083.0,0.0001694]
[1741877293054,0.66145425,82084.0,82083.0,4e-07]
[1741877293252,0.66145425,82084.0,82079.0,0.0001694]
[1741877293253,0.555847,82080.0,82079.0,0.0001694]
[1741877293516,0.6617641,82080.0,82079.0,0.0001694]
[1741877296689,0.6657641,82080.0,82079.0,0.0001694]
[1741877298542,0.6617641,82080.0,82079.0,0.0001694]
[1741877298715,0.78003679,82080.0,82079.0,0.0001694]
[1741877298915,0.6637641,82080.0,82079.0,0.0001694]
[1741877299137,0.6637641,82080.0,82079.0,4e-07]
[1741877299754,0.555872,82072.0,82071.0,4e-07]
[1741877299957,0.81508597,82072.0,82071.0,4e-07]
[1741877301899,0.8270216,82072.0,82071.0,4e-07]
[1741877302910,0.8290216,82072.0,82071.0,4e-07]
[1741877303342,0.8270216,82072.0,82071.0,4e-07]
[1741877303718,0.8340216,82072.0,82071.0,4e-07]
[1741877305426,0.8340216,82072.0,82058.0,8e-07]
[1741877305427,0.255913,82059.0,82058.0,8e-07]
[1741877305619,0.255913,82059.0,82016.0,8e-05]
[1741877305620,0.255997,82032.0,82022.0,0.0819]
[1741877306255,0.36547857,82032.0,82021.0,0.0461]
[1741877306455,0.36547857,82032.0,82021.0,0.058291]
[1741877306706,0.012189,82038.0,82029.0,0.01219]
[1741877306903,0.01222073,82034.0,82028.0,0.243818]
[1741877307112,0.255996,82033.0,82027.0,0.012191]
[1741877307348,0.255996,82033.0,82026.0,0.256015]
[1741877307349,0.012188,82042.0,82034.0,0.243799]
[1741877307563,0.01191992,82039.0,82027.0,0.012191]
[1741877307771,0.01191992,82039.0,82036.0,0.01454085]
[1741877307975,0.255984,82037.0,82035.0,0.01454085]
[1741877308150,0.24378,82042.0,82031.0,0.2447784]
[1741877308151,0.243766,82046.0,82036.0,0.012189]
[1741877308359,0.012189,82041.0,82037.0,0.01454085]
[1741877308492,0.243788,82039.0,82037.0,0.01454085]
[1741877308705,0.012189,82039.0,82033.0,0.243804]
[1741877309174,0.243794,82037.0,82031.0,0.2569674]
[1741877309372,0.012188,82043.0,82038.0,0.012189]
[1741877309529,0.15316,82060.0,82042.0,0.012188]
[1741877309738,0.255934,82053.0,82047.0,0.012188]
[1741877309959,0.15316,82060.0,82051.0,0.24375]
[1741877310185,0.012186,82056.0,82050.0,0.0454]
[1741877310409,0.012184,82070.0,82060.0,0.012186]
[1741877310619,0.243733,82057.0,82051.0,0.01454085]
[1741877310842,0.41216362,82080.0,82060.0,0.01454085]
[1741877310843,0.012185,82066.0,82060.0,0.01454085]
[1741877311069,0.243727,82059.0,82056.0,0.01454085]
[1741877311284,0.012186,82057.0,82051.0,0.01454085]
[1741877311497,0.012185,82063.0,82055.0,0.243738]
[1741877311767,0.012184,82071.0,82060.0,0.012186]
[1741877311948,0.02165849,82080.0,82068.0,0.01454085]
[1741877311949,0.012184,82069.0,82068.0,0.01454085]
[1741877312378,0.012185,82063.0,82062.0,0.01454085]
[1741877312583,0.2559,82063.0,82062.0,0.01454085]
[1741877312794,0.012185,82062.0,82057.0,0.25827185]
[1741877313030,0.005,82070.0,82067.0,0.012185]
[1741877313248,0.005,82070.0,82068.0,0.01454085]
[1741877313517,0.005,82070.0,82069.0,0.01454085]
[1741877313956,0.017184,82070.0,82069.0,0.01454085]
[1741877314173,0.260878,82070.0,82069.0,0.01299618]
[1741877314442,0.255878,82070.0,82069.0,0.01299618]
[1741877314666,0.243691,82072.0,82066.0,0.012185]
[1741877314667,0.243688,82072.0,82066.0,0.012185]
[1741877314876,0.255878,82071.0,82066.0,0.009185]
[1741877315084,0.243705,82067.0,82062.0,0.001]
[1741877315296,0.012185,82063.0,82062.0,0.001]
[1741877315500,0.012185,82066.0,82062.0,0.001]
[1741877315708,0.012185,82066.0,82060.0,0.255907]
[1741877315926,0.012185,82064.0,82057.0,0.255916]
[1741877316126,0.2559,82063.0,82058.0,0.01454085]
[1741877316351,0.02448128,82080.0,82065.0,0.012185]
[1741877316584,0.243655,82084.0,82079.0,0.01454085]
[1741877316718,0.02408549,82087.0,82076.0,0.012183]
[1741877316929,0.255821,82089.0,82082.0,0.012182]
[1741877317130,0.01218,82098.0,82082.0,0.012182]
[1741877317331,0.01218,82098.0,82081.0,0.255842]
[1741877317332,0.012182,82086.0,82079.0,0.0751]
[1741877317531,0.243664,82080.0,82078.0,0.0483]
[1741877317957,0.012181,82089.0,82079.0,0.012183]
[1741877318131,0.255824,82088.0,82082.0,0.243658]
[1741877318357,0.26773549,82095.0,82082.0,0.36335899]
[1741877318518,0.243641,82088.0,82082.0,0.25584]
[1741877318722,0.26773349,82095.0,82082.0,0.27038085]
[1741877318945,0.243628,82093.0,82082.0,0.27038085]
[1741877319146,0.012182,82087.0,82082.0,0.27038085]
[1741877319343,0.012182,82087.0,82082.0,0.01454085]
[1741877319344,0.243655,82084.0,82082.0,0.01454085]
[1741877319617,0.0023392,82083.0,82082.0,0.01454085]
[1741877319997,0.0125212,82083.0,82082.0,0.01454085]
[1741877320411,0.0125212,82083.0,82082.0,0.01654085]
[1741877322096,0.2439942,82083.0,82082.0,0.01454085]
[1741877322316,0.2561762,82083.0,82082.0,0.01454085]
[1741877323241,0.2439942,82083.0,82082.0,0.01454085]
[1741877323436,0.2561762,82083.0,82082.0,0.01554085]
[1741877324095,0.2561762,82083.0,82082.0,0.01654085]
[1741877324490,0.2561762,82083.0,82082.0,0.01554085]
[1741877325116,0.2561762,82083.0,82082.0,0.01454085]
[1741877325512,0.0003392,82083.0,82082.0,0.02872285]
[1741877325716,0.0003392,82083.0,82082.0,0.01654085]
[1741877325877,0.0125212,82083.0,82082.0,0.01454085]
[1741877326288,0.0003392,82083.0,82082.0,0.01554085]
[1741877326489,0.2561762,82083.0,82082.0,0.01654085]
[1741877326710,0.2561762,82083.0,82082.0,0.002]
[1741877326925,0.255891,82066.0,82054.0,0.0001697]
[1741877327132,0.243718,82063.0,82057.0,0.255916]
[1741877327332,0.012185,82067.0,82061.0,0.012186]
[1741877327535,0.012185,82068.0,82061.0,0.012186]
[1741877327797,0.012185,82068.0,82063.0,0.012185]
[1741877327972,0.255897,82064.0,82063.0,0.01454085]
[1741877328175,0.255897,82064.0,82054.0,0.0001697]
[1741877328176,0.012186,82058.0,82054.0,0.0001697]
[1741877328409,0.012184,82072.0,82067.0,0.243701]
[1741877328652,0.255854,82078.0,82074.0,0.01454085]
[1741877328857,0.243682,82074.0,82071.0,0.01454085]
[1741877329278,0.012184,82071.0,82070.0,0.01454085]
[1741877329574,0.243719,82062.0,82057.0,0.001]
[1741877329775,0.255891,82066.0,82058.0,0.02672685]
[1741877330004,0.243663,82081.0,82066.0,0.25824385]
[1741877330133,0.243663,82081.0,82072.0,0.01454085]
[1741877330134,0.25547273,82076.0,82072.0,0.01454085]
[1741877330341,0.243682,82074.0,82072.0,0.01454085]
[1741877330536,0.243653,82084.0,82080.0,0.012183]
[1741877330743,0.01245568,82083.0,82082.0,0.25819885]
[1741877330948,0.0003392,82083.0,82082.0,0.01454085]
[1741877331405,0.0125212,82083.0,82082.0,0.01454085]
[1741877331758,0.02481042,82083.0,82082.0,0.01454085]
[1741877331988,0.0125212,82083.0,82082.0,0.01454085]
[1741877333163,0.0135212,82083.0,82082.0,0.01454085]
[1741877333770,0.0013392,82083.0,82082.0,0.01454085]
[1741877333981,0.0013392,82083.0,82082.0,0.02672285]
[1741877334219,0.0135212,82083.0,82082.0,0.01454085]
[1741877336184,0.0135212,82083.0,82082.0,0.02454085]
[1741877337070,0.0013392,82083.0,82082.0,0.26819885]
[1741877338329,0.2571762,82083.0,82082.0,0.02454085]
[1741877338527,0.0003392,82083.0,82082.0,0.02454085]
[1741877338758,0.0013392,82083.0,82082.0,0.02454085]
[1741877339304,0.0003392,82083.0,82082.0,0.02454085]
[1741877339707,0.0003392,82083.0,82082.0,0.02654085]
[1741877339895,0.0125212,82083.0,82082.0,0.02654085]
[1741877340125,0.2561762,82083.0,82082.0,0.012]
[1741877340335,0.0125212,82083.0,82082.0,0.012]
[1741877340561,0.36187066,82083.0,82082.0,0.012]
[1741877340762,0.36187066,82083.0,82082.0,1e-06]
[1741877340763,0.81495066,82083.0,82082.0,1e-06]
[1741877341385,0.81495066,82083.0,82082.0,0.001001]
[1741877341779,0.243689,82072.0,82067.0,0.012185]
[1741877341984,0.012184,82070.0,82060.0,0.012186]
[1741877342220,0.012186,82061.0,82058.0,0.01454085]
[1741877342426,0.243727,82059.0,82058.0,0.01454085]
[1741877342627,0.012186,82061.0,82057.0,0.01454085]
[1741877342800,0.012186,82058.0,82056.0,0.0001696]
[1741877343131,0.012185,82066.0,82056.0,0.0001696]
[1741877343361,0.243731,82058.0,82056.0,0.0001696]
[1741877343587,0.012185,82062.0,82056.0,0.0001696]
[1741877343588,0.012186,82061.0,82056.0,0.0001696]
[1741877343787,0.012186,82061.0,82060.0,0.01554085]
[1741877344213,0.012186,82061.0,82060.0,0.01454085]
[1741877344433,0.255919,82057.0,82056.0,0.0011696]
[1741877344981,0.255919,82057.0,82056.0,0.0001696]
[1741877345221,0.255919,82057.0,82054.0,3e-07]
[1741877345222,0.255924,82055.0,82054.0,3e-07]
[1741877345434,0.66369708,82055.0,82054.0,3e-07]
[1741877347011,0.66569708,82055.0,82054.0,3e-07]
[1741877347476,0.66369708,82055.0,82054.0,3e-07]
[1741877348171,0.36369708,82055.0,82054.0,3e-07]
[1741877348644,0.66369708,82055.0,82054.0,3e-07]
[1741877349098,0.66569708,82055.0,82054.0,3e-07]
[1741877349564,0.66669708,82055.0,82054.0,3e-07]
[1741877350048,0.37295504,82055.0,82054.0,3e-07]
[1741877350273,0.012186,82060.0,82054.0,3e-07]
[1741877350505,0.003,82055.0,82054.0,3e-07]
[1741877350731,0.003,82055.0,82054.0,0.01454115]
[1741877350982,0.24373,82058.0,82057.0,0.01454085]
[1741877351226,0.24373,82058.0,82054.0,3e-07]
[1741877351227,0.002,82055.0,82054.0,3e-07]
[1741877351469,0.003,82055.0,82054.0,0.02672815]
[1741877351696,0.002,82055.0,82054.0,3e-07]
[1741877351888,0.002,82055.0,82054.0,0.02672815]
[1741877352106,0.002,82055.0,82054.0,0.02772815]
[1741877352559,0.002,82055.0,82054.0,0.25928215]
[1741877352572,0.002,82055.0,82054.0,0.27146915]
[1741877352812,0.012184,82073.0,82059.0,0.012186]
[1741877353097,0.255887,82068.0,82063.0,0.01454085]
[1741877353331,0.243726,82060.0,82056.0,0.01454085]
[1741877353582,0.255912,82060.0,82056.0,0.13424184]
[1741877353839,0.243706,82066.0,82060.0,0.27044785]
[1741877354062,0.255875,82071.0,82065.0,0.25824985]
[1741877354264,0.255893,82066.0,82060.0,0.01454085]
[1741877354610,0.243712,82064.0,82060.0,0.25826385]
[1741877354811,0.255897,82064.0,82060.0,0.01454085]
[1741877355005,0.255893,82066.0,82062.0,0.01454085]
[1741877355322,0.255898,82064.0,82061.0,0.01454085]
[1741877355523,0.663063,82081.0,82072.0,0.012184]
[1741877355727,0.0003392,82083.0,82082.0,0.25584]
[1741877355932,0.0003392,82083.0,82082.0,0.01454085]
[1741877356159,0.2561762,82083.0,82082.0,0.01454085]
[1741877356554,0.0003392,82083.0,82082.0,0.26938085]
[1741877357015,0.0003392,82083.0,82082.0,0.38908184]
[1741877357398,0.0003392,82083.0,82082.0,0.38808184]
[1741877358286,0.0003392,82083.0,82082.0,1.88808184]
[1741877358494,0.0003392,82083.0,82082.0,1.88908184]
[1741877359301,0.0003392,82083.0,82082.0,1.63324184]
[1741877359505,0.2561762,82083.0,82082.0,0.001]
[1741877359714,0.0003392,82083.0,82082.0,0.015182]
[1741877359912,0.0003392,82083.0,82082.0,0.02972285]
[1741877360145,0.0003392,82083.0,82082.0,0.02872285]
[1741877360558,0.0003392,82083.0,82082.0,0.03172285]
[1741877361188,0.0003392,82083.0,82082.0,0.02672285]
[1741877361391,0.0003392,82083.0,82082.0,0.03072285]
[1741877361798,0.0003392,82083.0,82082.0,0.01654085]
[1741877361995,0.0003392,82083.0,82082.0,0.03172285]
[1741877362982,0.0003392,82083.0,82082.0,0.01954085]
[1741877364090,0.0125212,82083.0,82082.0,0.01954085]
[1741877364431,0.0003392,82083.0,82082.0,0.01954085]
[1741877364673,0.0003392,82083.0,82082.0,0.03172285]
[1741877365546,0.0003392,82083.0,82082.0,0.15142384]
[1741877365749,0.0003392,82083.0,82082.0,0.15264198]
[1741877365919,0.0003392,82083.0,82082.0,0.15142384]
[1741877366275,0.0003392,82083.0,82082.0,1.65142384]
[1741877366493,0.0003392,82083.0,82082.0,1.51954085]
[1741877366831,0.0003392,82083.0,82082.0,1.53172285]
[1741877366979,0.0003392,82083.0,82082.0,0.01954085]
[1741877367187,0.2561762,82083.0,82082.0,0.01971005]
[1741877367379,0.2561762,82083.0,82082.0,0.0051692]
[1741877368223,0.2561762,82083.0,82082.0,0.01971005]
[1741877368426,0.2561762,82083.0,82082.0,0.01671005]
[1741877368810,0.2561762,82083.0,82082.0,0.01871005]
[1741877369216,0.2561762,82083.0,82082.0,0.0041692]
[1741877370139,0.2561762,82083.0,82082.0,0.0021692]
[1741877370362,0.2561762,82083.0,82082.0,0.0001692]
[1741877370536,0.2561762,82083.0,82082.0,0.0021692]
[1741877370770,0.36187066,82083.0,82082.0,0.0021692]
[1741877370898,0.36187066,82083.0,82082.0,0.0001692]
[1741877371871,0.66187066,82083.0,82082.0,0.0001692]
[1741877372083,0.66387066,82083.0,82082.0,0.0001692]
[1741877372502,0.0023392,82083.0,82082.0,0.0001692]
[1741877372671,0.2581762,82083.0,82082.0,0.0001692]
[1741877373004,0.0033392,82083.0,82082.0,0.0001692]
[1741877373207,0.0155212,82083.0,82082.0,0.0001692]
[1741877373613,0.0125212,82083.0,82082.0,0.0001692]
[1741877374020,0.0003392,82083.0,82082.0,0.01671005]
[1741877374228,0.0135212,82083.0,82082.0,0.01671005]
[1741877374637,0.0003392,82083.0,82082.0,0.01671005]
[1741877375049,0.0125212,82083.0,82082.0,0.01471005]
[1741877375522,0.0125212,82083.0,82082.0,0.01671005]
[1741877376069,0.0125212,82083.0,82082.0,0.01871005]
[1741877376312,0.0125212,82083.0,82082.0,0.01671005]
[1741877376514,0.0003392,82083.0,82082.0,0.27255005]
[1741877376715,0.0003392,82083.0,82082.0,0.27155005]
[1741877377129,0.0003392,82083.0,82082.0,0.01671005]
[1741877377352,0.0125212,82083.0,82082.0,0.01671005]
[1741877377560,0.0125212,82083.0,82082.0,0.01471005]
[1741877377772,0.0125212,82083.0,82082.0,0.01671005]
[1741877377947,0.0125212,82083.0,82082.0,0.01871005]
[1741877378476,0.0125212,82083.0,82082.0,0.01671005]